bitfinex/quotes_ETHUSD_20251108
["timestamp","ask_amount","ask_price","bid_price","bid_amount"]
[1762581307328,5.9108502,3440.6,3440.5,0.001]
[1762581307862,6.5283182,3440.6,3440.5,0.001]
[1762581308559,5.9108502,3440.6,3440.5,0.001]
[1762581308721,5.1092818,3440.6,3440.5,0.001]
[1762581309620,5.2092818,3440.6,3440.5,0.001]
[1762581309819,1.0431,3440.6,3440.5,0.001]
[1762581311487,0.1,3440.6,3440.5,0.001]
[1762581311912,0.1,3440.6,3440.5,2.93661981]
[1762581312186,1.0518,3440.6,3440.5,0.29476198]
[1762581312393,0.1,3440.6,3440.5,0.29476198]
[1762581312577,1.0518,3440.6,3440.5,0.29476198]
[1762581312753,1.0518,3440.6,3440.5,0.001]
[1762581312951,0.1,3440.6,3440.5,2.90755427]
[1762581313285,0.1,3440.6,3440.5,0.001]
[1762581313493,0.1,3440.6,3440.5,2.90755427]
[1762581314286,0.1,3440.6,3440.5,0.001]
[1762581314852,0.1,3440.6,3440.5,2.90755427]
[1762581315084,1.0518,3440.6,3440.5,0.001]
[1762581316499,0.1,3440.6,3440.5,0.001]
[1762581316648,0.1,3440.6,3440.5,2.90755427]
[1762581318104,0.5973,3440.6,3440.5,0.001]
[1762581318601,0.5973,3440.6,3440.5,2.90755427]
[1762581318602,0.1,3440.6,3440.5,2.90755427]
[1762581318908,0.1,3440.6,3440.5,3.48908158]
[1762581319799,0.1,3440.6,3440.5,0.58252731]
[1762581320261,0.5973,3440.6,3440.5,0.001]
[1762581322606,0.5973,3440.6,3440.5,2.90755427]
[1762581322805,0.1,3440.6,3440.5,2.90755427]
[1762581323167,0.5973,3440.6,3440.5,2.90755427]
[1762581323397,0.5973,3440.6,3440.5,0.001]
[1762581323577,0.5973,3440.6,3440.5,2.90755427]
[1762581323884,0.1,3440.6,3440.5,3.2128897]
[1762581324401,0.1,3440.6,3440.5,0.30633543]
[1762581324605,0.1,3440.6,3440.5,3.2128897]
[1762581325210,0.1,3440.6,3440.5,0.30633543]
[1762581325417,0.1,3440.6,3440.5,2.90755427]
[1762581327619,0.1,3440.6,3440.5,2.93661981]
[1762581327824,0.1,3440.6,3440.5,2.90755427]
[1762581328027,0.1,3440.6,3440.5,3.34212381]
[1762581328183,0.1,3440.6,3440.5,3.45785827]
[1762581328384,0.1,3440.6,3440.5,4.094414]
[1762581328729,0.1,3440.6,3440.5,4.12347954]
[1762581328884,0.1,3440.6,3440.5,4.094414]
[1762581341182,0.5893,3440.6,3440.5,4.094414]
[1762581342643,0.1,3440.6,3440.5,4.094414]
[1762581342849,0.1,3440.6,3440.5,3.97867954]
[1762581343265,0.1,3440.6,3440.5,3.949614]
[1762581344990,0.1,3440.6,3440.5,5.209326]
[1762581345173,1e-08,3440.6,3440.5,5.209326]
[1762581347079,1e-08,3441.0,3440.9,3.31172039]
[1762581347397,1e-08,3441.0,3440.9,9.66415271]
[1762581347599,1e-08,3441.0,3440.9,9.63509055]
[1762581350571,1e-08,3441.0,3440.9,5.31920696]
[1762581350777,1e-08,3441.0,3440.9,4.16592839]
[1762581350778,0.46060001,3441.0,3440.9,4.16592839]
[1762581350958,0.95140001,3441.0,3440.9,4.57143239]
[1762581351164,0.95140001,3441.0,3440.9,4.16592839]
[1762581351165,0.46060001,3441.0,3440.9,4.16592839]
[1762581352892,0.46060001,3441.0,3440.9,4.71623239]
[1762581353232,0.46060001,3441.0,3440.9,5.76911824]
[1762581354250,1e-08,3441.0,3440.9,5.76911824]
[1762581354930,0.95140001,3441.0,3440.9,4.50940624]
[1762581355738,0.46060001,3441.0,3440.9,4.50940624]
[1762581355912,0.95140001,3441.0,3440.9,4.50940624]
[1762581356445,0.95140001,3441.0,3440.9,3.05101639]
[1762581356804,0.95140001,3441.0,3440.9,0.1448]
[1762581357004,0.95140001,3441.0,3440.6,0.405504]
[1762581357242,0.4606,3440.7,3440.6,0.405504]
[1762581357400,0.4606,3440.7,3440.6,3.3119738]
[1762581357602,0.4606,3440.7,3440.5,0.001]
[1762581357832,0.4606,3440.6,3440.5,2.90755427]
[1762581358218,0.9514,3440.6,3440.5,2.90755427]
[1762581359949,0.9514,3440.6,3440.5,0.001]
[1762581360149,0.9514,3440.6,3440.5,2.90755427]
[1762581360649,0.4908,3440.9,3440.7,2.90635907]
[1762581360855,0.4606,3440.6,3440.5,0.001]
[1762581361018,0.4606,3440.6,3440.5,2.90755427]
[1762581361209,0.9514,3440.6,3440.5,2.90755427]
[1762581362528,0.00200001,3441.0,3440.7,2.90638532]
[1762581362728,0.49710001,3441.0,3440.9,2.90621639]
[1762581363027,0.4884,3440.8,3440.6,2.9064698]
[1762581363653,0.9835,3440.8,3440.7,2.90638532]
[1762581364155,0.00200001,3441.0,3440.9,2.90621639]
[1762581364512,0.98550001,3441.0,3440.9,2.90621639]
[1762581364709,0.00200001,3441.0,3440.9,2.90621639]
[1762581365143,0.98550001,3441.0,3440.9,2.90621639]
[1762581366861,0.98550001,3441.0,3440.9,3.05101639]
[1762581367255,0.98550001,3441.0,3440.9,0.1448]
[1762581367642,0.98550001,3441.0,3440.5,0.001]
[1762581367976,0.4884,3440.6,3440.5,2.90755427]
[1762581368435,0.00200001,3441.0,3440.9,2.90621639]
[1762581368627,0.49710001,3441.0,3440.9,2.90621639]
[1762581368830,0.98550001,3441.0,3440.5,0.001]
[1762581369062,0.4884,3440.6,3440.5,2.90752877]
[1762581369264,0.4884,3440.6,3440.5,3.48905377]
[1762581369471,0.9835,3440.6,3440.5,3.48905377]
[1762581369969,0.9835,3440.6,3440.5,2.90755427]
[1762581370580,0.4884,3440.6,3440.5,2.90755427]
[1762581370759,0.00200001,3441.0,3440.5,2.90753804]
[1762581370760,0.4951,3440.9,3440.5,2.90753804]
[1762581370941,0.4884,3440.6,3440.5,2.90753804]
[1762581371644,0.4951,3440.9,3440.8,2.90630086]
[1762581371854,0.4951,3440.9,3440.5,0.001]
[1762581372174,0.4951,3440.9,3440.8,2.90630086]
[1762581372375,0.9835,3440.9,3440.8,2.90630086]
[1762581373863,0.00200001,3441.0,3440.9,2.90621639]
[1762581374064,0.00200001,3441.0,3440.9,2.93527855]
[1762581374284,0.00200001,3441.0,3440.9,2.90621639]
[1762581374850,0.49040001,3441.0,3440.9,2.90621639]
[1762581375686,0.00200001,3441.0,3440.9,2.90621639]
[1762581375869,0.00200001,3441.0,3440.9,3.54560582]
[1762581376069,0.00200001,3441.0,3440.9,3.95110982]
[1762581376657,0.49040001,3441.0,3440.9,3.95210982]
[1762581377587,0.98550001,3441.0,3440.9,3.95210982]
[1762581377792,0.98550001,3441.0,3440.9,3.69140582]
[1762581378403,0.98550001,3441.0,3440.9,3.05201639]
[1762581379005,0.98550001,3441.0,3440.9,0.1458]
[1762581379810,0.98550001,3441.0,3440.9,3.05201639]
[1762581380472,0.98550001,3441.0,3440.9,0.1458]
[1762581381162,0.98550001,3441.0,3440.9,3.05201639]
[1762581381608,0.98550001,3441.0,3440.9,0.1458]
[1762581381804,0.98550001,3441.0,3440.9,3.05201639]
[1762581383578,0.49040001,3441.0,3440.9,3.05201639]
[1762581384113,0.98550001,3441.0,3440.9,3.05201639]
[1762581384680,0.98550001,3441.0,3440.9,0.1458]
[1762581385711,0.98550001,3441.0,3440.9,3.05201639]
[1762581390014,0.00200001,3441.0,3440.9,3.05201639]
[1762581390716,0.49040001,3441.0,3440.9,3.05201639]
[1762581391081,0.98550001,3441.0,3440.9,3.05201639]
[1762581391518,0.98550001,3441.0,3440.9,0.1458]
[1762581394439,0.98550001,3441.0,3440.9,0.001]
[1762581394657,1.43694258,3441.0,3440.9,0.001]
[1762581395009,8.40340781,3441.0,3440.9,0.001]
[1762581395321,9.02503092,3441.0,3440.9,0.001]
[1762581397052,11.05846787,3441.0,3440.9,0.001]
[1762581397253,11.05846787,3441.0,3440.5,0.001]
[1762581397254,2.9064698,3440.6,3440.5,0.001]
[1762581397447,9.15096375,3440.6,3440.5,0.001]
[1762581397635,9.61626375,3440.6,3440.5,0.001]
[1762581397832,7.16574217,3440.6,3440.5,0.001]
[1762581398037,1.87307009,3440.6,3440.5,0.001]
[1762581398615,8.83987319,3440.6,3440.5,0.001]
[1762581399229,5.93340339,3440.6,3440.5,0.001]
[1762581399517,1.11712311,3440.6,3440.5,0.001]
[1762581399737,0.9608,3440.6,3440.5,0.001]
[1762581403947,0.620246,3440.9,3440.5,0.001]
[1762581404146,0.00200001,3441.0,3440.6,2.90641461]
[1762581404325,0.4672,3440.9,3440.6,2.90641461]
[1762581404521,0.4672,3440.9,3440.6,3.48791968]
[1762581404712,0.00200001,3441.0,3440.7,2.90633434]
[1762581404912,0.46920001,3441.0,3440.7,2.90633434]
[1762581405347,0.46920001,3441.0,3440.8,2.90627004]
[1762581405711,0.4831,3440.9,3440.7,2.90635464]
[1762581405916,0.4831,3440.9,3440.8,0.6395405]
[1762581406538,0.4831,3440.9,3440.8,3.54584136]
[1762581406929,0.4831,3440.9,3440.8,0.6395405]
[1762581407247,0.9762,3440.9,3440.8,0.6395405]
[1762581407450,0.9762,3440.9,3440.6,0.1448]
[1762581407654,0.4891,3440.7,3440.6,0.1448]
[1762581407949,0.4891,3440.7,3440.5,0.001]
[1762581408184,0.14680001,3441.0,3440.5,0.001]
[1762581408185,0.9822,3440.6,3440.5,0.001]
[1762581412477,0.1448,3440.7,3440.5,2.90755427]
[1762581412989,0.1448,3440.7,3440.5,0.59711095]
[1762581413295,0.4891,3440.6,3440.5,0.001]
[1762581414376,0.9822,3440.6,3440.5,0.001]
[1762581414566,0.4891,3440.6,3440.5,0.001]
[1762581414783,0.1448,3440.7,3440.5,2.90755427]
[1762581415571,0.1448,3440.7,3440.5,0.001]
[1762581415799,0.4891,3440.6,3440.5,0.001]
[1762581416162,0.9822,3440.6,3440.5,0.001]
[1762581418266,0.4891,3440.6,3440.5,0.001]
[1762581418466,0.9822,3440.6,3440.5,0.001]
[1762581421206,0.4891,3440.6,3440.5,0.001]
[1762581421501,0.4891,3440.6,3440.5,2.90755427]
[1762581421663,0.9822,3440.6,3440.5,0.001]
[1762581422568,0.00200001,3441.0,3440.6,2.90639401]
[1762581422768,0.47770001,3441.0,3440.6,2.9064698]
[1762581423098,0.4789,3440.7,3440.6,2.9064698]
[1762581423303,0.4789,3440.7,3440.5,0.1458]
[1762581423605,0.9546,3440.6,3440.5,0.001]
[1762581423913,0.9546,3440.6,3440.5,2.90755427]
[1762581424410,0.9546,3440.6,3440.5,0.001]
[1762581424880,0.9546,3440.6,3440.5,2.90755427]
[1762581425089,0.4789,3440.6,3440.5,0.001]
[1762581425285,0.9546,3440.6,3440.5,0.001]
[1762581426417,1.58206453,3440.6,3440.5,0.001]
[1762581426611,2.20413121,3440.6,3440.5,0.001]
[1762581426766,1.57666668,3440.6,3440.5,0.001]
[1762581426970,0.9546,3440.6,3440.5,0.001]
[1762581429919,1.57663918,3440.6,3440.5,0.001]
[1762581436349,0.62203918,3440.6,3440.5,0.001]
[1762581436550,0.76683918,3440.8,3440.5,0.001]
[1762581436749,0.1448,3440.8,3440.7,2.90638532]
[1762581438227,0.1448,3440.8,3440.6,2.93550635]
[1762581438423,0.002,3440.9,3440.8,2.90630086]
[1762581439150,0.002,3440.9,3440.8,2.93536386]
[1762581439469,0.002,3440.9,3440.8,3.53560044]
[1762581441563,0.9566,3440.9,3440.7,0.1448]
[1762581441752,0.4789,3440.8,3440.7,0.1448]
[1762581441948,0.9546,3440.8,3440.7,0.1448]
[1762581442462,0.9546,3440.8,3440.5,0.001]
[1762581442667,0.4789,3440.6,3440.5,0.001]
[1762581442971,0.9546,3440.6,3440.5,0.001]
[1762581444067,5.1207818,3440.6,3440.5,0.001]
[1762581444228,5.74210672,3440.6,3440.5,0.001]
[1762581444564,6.13225149,3440.6,3440.5,0.001]
[1762581444737,7.11406888,3440.6,3440.5,0.001]
[1762581445067,6.72392411,3440.6,3440.5,0.001]
[1762581446788,7.75911153,3440.6,3440.5,0.001]
[1762581447001,7.87559631,3440.6,3440.5,0.001]
[1762581448772,6.84040889,3440.6,3440.5,0.001]
[1762581450165,7.61616762,3440.6,3440.5,0.001]
[1762581450466,7.61610143,3440.6,3440.5,0.001]
[1762581450664,6.84040889,3440.6,3440.5,0.001]
[1762581455830,4.16626627,3440.5,3440.4,0.001]
[1762581456034,12.12819655,3440.5,3440.4,0.001]
[1762581456735,11.4449139,3440.5,3440.4,0.001]
[1762581457067,12.58897925,3440.5,3440.4,0.001]
[1762581457386,11.0394099,3440.5,3440.4,0.001]
[1762581458404,12.58810203,3440.5,3440.4,0.001]
[1762581459337,12.58791242,3440.5,3440.4,0.001]
[1762581459923,11.0394099,3440.5,3440.4,0.001]
[1762581460213,6.72336927,3440.5,3440.4,0.001]
[1762581460615,7.75557313,3440.5,3440.4,0.001]
[1762581461172,6.72336927,3440.5,3440.4,0.001]
[1762581463938,7.49746108,3440.5,3440.4,0.001]
[1762581464440,7.75557313,3440.5,3440.4,0.001]
[1762581464848,6.72336927,3440.5,3440.4,0.001]
[1762581465873,2.855715,3440.5,3440.4,0.001]
[1762581466170,5.27269119,3440.5,3440.4,0.001]
[1762581466386,5.76959119,3440.5,3440.4,0.001]
[1762581467453,6.5436581,3440.5,3440.4,0.001]
[1762581469460,5.2839461,3440.5,3440.4,0.001]
[1762581470305,4.50987919,3440.5,3440.4,0.001]
[1762581470461,5.88451937,3440.5,3440.4,0.001]
[1762581471779,7.14423137,3440.5,3440.4,0.001]
[1762581472140,8.17643523,3440.5,3440.4,0.001]
[1762581473397,7.14423137,3440.5,3440.4,0.001]
[1762581473586,8.69273389,3440.5,3440.4,0.001]
[1762581474214,8.80922749,3440.5,3440.4,0.001]
[1762581474375,7.26072497,3440.5,3440.4,0.001]
[1762581474780,4.16643525,3440.3,3440.2,0.001]
[1762581474994,5.27286017,3440.3,3440.2,0.001]
[1762581475188,5.76976017,3440.3,3440.2,0.001]
[1762581475997,5.88626157,3440.3,3440.2,0.001]
[1762581477729,10.0858008,3440.3,3440.2,0.001]
[1762581477934,11.91782786,3440.3,3440.2,0.001]
[1762581480098,12.37388487,3440.3,3440.2,0.001]
[1762581481839,7.56094424,3440.3,3440.2,0.001]
[1762581482052,8.05784424,3440.3,3440.2,0.001]
[1762581483640,8.74112689,3440.3,3440.2,0.001]
[1762581483845,11.19990192,3440.3,3440.2,0.001]
[1762581484457,9.14663089,3440.3,3440.2,0.001]
[1762581484662,2.90706125,3439.9,3439.8,0.001]
[1762581484842,9.7587388,3439.9,3439.8,0.001]
[1762581485163,10.2542388,3439.9,3439.8,0.001]
[1762581485885,10.37075004,3439.9,3439.8,0.001]
[1762581486949,11.92433473,3439.9,3439.8,0.001]
[1762581487165,12.01875712,3439.9,3439.8,0.001]
[1762581487366,0.444048,3438.0,3437.9,2.90875243]
[1762581492905,1.39790638,3439.1,3437.9,2.90875243]
[1762581493115,2.65761838,3439.1,3438.2,2.90848884]
[1762581493409,0.62132492,3439.0,3438.3,0.04084888]
[1762581494386,1.88103692,3439.0,3438.2,2.90848884]
[1762581494604,0.62132492,3438.9,3438.2,2.90848884]
[1762581495730,0.62132492,3439.0,3438.3,2.90839841]
[1762581495882,0.77658146,3439.1,3438.3,2.90839841]
[1762581496082,2.03629346,3439.1,3438.3,2.90839841]
[1762581496426,0.62132492,3439.0,3438.3,3.49009657]
[1762581497309,0.62132492,3439.1,3438.3,3.49009657]
[1762581497518,0.1448,3438.6,3438.3,3.49009657]
[1762581499413,0.1448,3438.6,3438.3,0.58169816]
[1762581499588,0.1448,3438.6,3438.1,3.05336341]
[1762581499793,0.1448,3438.6,3438.1,0.1458]
[1762581500614,0.1448,3438.6,3438.4,2.90830493]
[1762581500807,0.1448,3438.6,3438.3,2.90839349]
[1762581501482,0.1448,3438.6,3438.2,2.90848681]
[1762581501702,0.1448,3438.6,3438.2,3.50478299]
[1762581502828,0.1448,3438.6,3438.3,2.90841097]
[1762581503335,0.1448,3438.6,3438.3,2.86400617]
[1762581503631,0.1448,3438.6,3438.2,3.50476554]
[1762581504032,0.77392692,3439.0,3438.5,2.90818286]
[1762581504242,0.152602,3439.0,3438.6,3.23952674]
[1762581505135,0.152602,3439.0,3438.7,2.90807322]
[1762581505342,0.152602,3439.0,3438.6,3.23950118]
[1762581505723,0.152602,3439.0,3438.8,2.90798291]
[1762581505949,0.152602,3439.0,3438.7,2.90805104]
[1762581506129,0.152602,3439.0,3438.7,3.5228167]
[1762581508757,0.152602,3439.0,3438.9,2.90790659]
[1762581510017,0.152602,3439.0,3438.9,3.31341059]
[1762581511346,0.152602,3439.0,3438.6,0.33136869]
[1762581511522,0.152602,3439.0,3438.7,2.90807133]
[1762581512653,0.152602,3439.0,3438.8,2.90798963]
[1762581513007,0.152602,3439.0,3438.9,2.90790659]
[1762581513467,0.152602,3439.0,3438.8,2.90797196]
[1762581513755,0.152602,3439.0,3438.9,2.90790659]
[1762581515555,0.152602,3439.0,3438.8,2.90796637]
[1762581515955,0.4677,3438.9,3438.7,0.1448]
[1762581516161,0.4677,3438.9,3438.5,2.90824459]
[1762581516319,0.4677,3438.9,3438.6,2.90814972]
[1762581516657,0.4677,3438.9,3438.6,2.90813982]
[1762581517305,0.6623,3438.9,3438.6,2.90813982]
[1762581517448,0.297402,3439.0,3438.4,0.1448]
[1762581517748,0.152602,3439.0,3438.7,2.90807572]
[1762581517961,0.152602,3439.0,3438.9,2.90790659]
[1762581518314,0.152602,3439.0,3438.9,3.05270659]
[1762581519261,0.152602,3439.0,3438.9,3.45821059]
[1762581521146,0.152602,3439.0,3438.9,3.31341059]
[1762581531178,0.152602,3439.0,3438.9,3.45821059]
[1762581531372,0.152602,3439.0,3438.9,4.53213604]
[1762581534894,0.152602,3439.0,3438.9,3.05270659]
[1762581534895,0.609702,3439.0,3438.9,3.05270659]
[1762581535190,0.609702,3439.0,3438.9,3.45821059]
[1762581535654,0.152602,3439.0,3438.9,3.45821059]
[1762581537902,0.152602,3439.0,3438.9,3.45921059]
[1762581538196,0.154602,3439.0,3438.9,4.53323604]
[1762581538798,0.002,3439.1,3439.0,2.90782204]
[1762581539172,0.002,3439.1,3439.0,2.93690026]
[1762581539500,0.002,3439.1,3439.0,2.90782204]
[1762581540608,0.002,3439.1,3439.0,3.31332604]
[1762581540805,0.002,3439.1,3439.0,4.78553624]
[1762581541102,0.002,3439.1,3439.0,6.04524824]
[1762581542105,0.002,3439.1,3439.0,0.04524824]
[1762581542319,0.002,3439.1,3438.3,1.56780756]
[1762581542320,0.175,3437.8,3437.0,2.67168264]
[1762581542517,0.175,3437.8,3436.1,0.008]
[1762581542518,1.259712,3436.9,3436.1,0.008]
[1762581542818,0.77658146,3436.3,3436.2,2.91019149]
[1762581543122,1.39725608,3436.3,3436.2,2.91019149]
[1762581543326,0.62067462,3436.3,3436.2,4.18875862]
[1762581543655,1.03544194,3436.9,3436.2,4.18875862]
[1762581543656,0.77658146,3436.9,3436.2,1.27856713]
[1762581543801,0.61899787,3436.8,3436.7,2.90976809]
[1762581544201,0.4788,3436.8,3436.7,2.90976809]
[1762581544405,0.4978,3437.1,3436.5,2.90988246]
[1762581544406,0.4978,3437.1,3436.8,2.90968342]
[1762581544606,0.61829993,3437.0,3436.9,2.90959876]
[1762581544815,0.61829993,3437.2,3437.1,2.90942946]
[1762581544977,1.44567492,3437.8,3436.9,0.58192822]
[1762581545307,1.11619516,3437.7,3437.6,2.90900628]
[1762581545803,1.59499516,3437.7,3437.3,2.9092382]
[1762581545990,0.3986,3437.4,3437.3,2.9092382]
[1762581546188,0.4978,3437.6,3437.4,2.90917553]
[1762581546392,0.4978,3437.6,3437.5,2.9090909]
[1762581546778,0.9766,3437.6,3437.5,2.9090909]
[1762581546979,1.59426827,3437.6,3437.5,2.9090909]
[1762581549252,0.9766,3437.6,3437.5,2.9090909]
[1762581549452,1.59426827,3437.6,3437.5,2.9090909]
[1762581549853,0.9766,3437.6,3437.5,2.9090909]
[1762581550156,1.59426827,3437.6,3437.5,2.9090909]
[1762581550537,0.9766,3437.6,3437.5,2.9090909]
[1762581550843,1.59426827,3437.6,3437.5,2.9090909]
[1762581551332,0.61766827,3437.7,3437.6,2.90900628]
[1762581551662,0.175,3438.0,3437.9,2.90875243]
[1762581551831,0.79154382,3438.0,3437.9,2.90875243]
[1762581552034,0.6538,3438.0,3437.9,2.90875243]
[1762581552454,1.27034382,3438.0,3437.9,2.90875243]
[1762581552758,0.4788,3438.0,3437.9,2.90875243]
[1762581553155,0.61653175,3438.1,3438.0,2.90866783]
[1762581553314,0.61653175,3438.3,3438.2,2.90849863]
[1762581553856,1.59313175,3438.3,3438.2,2.90849863]
[1762581554372,0.005,3438.9,3438.8,2.90799115]
[1762581554546,0.88935458,3438.9,3438.8,2.90799115]
[1762581554719,1.59839289,3438.9,3438.8,2.90799115]
[1762581554923,1.10059289,3438.9,3438.8,2.90799115]
[1762581555229,0.005,3438.9,3438.8,2.90799115]
[1762581555415,0.4838,3438.9,3436.9,0.87381143]
[1762581555617,0.5735,3437.2,3436.1,0.008]
[1762581555817,0.4788,3436.2,3436.1,0.008]
[1762581556061,0.6168149,3436.2,3436.1,0.008]
[1762581556267,0.77287492,3436.9,3436.1,0.4141]
[1762581556561,0.61746849,3436.8,3436.5,2.90991697]
[1762581556744,0.61746849,3436.7,3436.1,0.008]
[1762581556945,0.4978,3436.8,3436.5,2.9099128]
[1762581556946,0.61746849,3436.6,3436.5,2.9099128]
[1762581557245,0.61746849,3436.7,3436.6,2.90985276]
[1762581557461,0.61746849,3436.7,3436.6,2.91085276]
[1762581557624,1.09626849,3436.7,3436.6,2.91085276]
[1762581558021,3.01318734,3436.7,3436.6,0.001]
[1762581558233,1.75347534,3436.7,3436.6,0.001]
[1762581559804,0.61746849,3436.7,3436.6,3.31695276]
[1762581560104,0.0953,3437.2,3437.1,2.90942946]
[1762581560312,2.46321726,3437.2,3437.1,2.90942946]
[1762581561360,1.69034234,3437.2,3437.1,2.90942946]
[1762581561604,2.46374197,3437.2,3437.1,2.90942946]
[1762581562290,1.69034234,3437.2,3437.1,2.90942946]
[1762581562524,2.46385658,3437.2,3437.1,2.90942946]
[1762581563733,0.1057,3436.7,3436.1,0.008]
[1762581563916,0.1094,3436.2,3436.1,0.008]
[1762581564093,1.259712,3436.1,3435.2,2.91101327]
[1762581564293,1.17509807,3435.5,3435.1,0.005]
[1762581564606,0.61885486,3435.4,3435.3,3.05575391]
[1762581565011,0.61885486,3435.4,3435.3,3.51965391]
[1762581565207,0.61885486,3435.4,3435.3,4.47317736]
[1762581565705,0.61885486,3435.4,3435.3,4.92437736]
[1762581565905,0.61885486,3435.4,3435.3,4.47317736]
[1762581566341,0.61885486,3435.4,3435.3,3.05575391]
[1762581566548,0.61885486,3435.4,3435.3,2.91095391]
[1762581567333,1.39177607,3435.4,3435.3,2.91095391]
[1762581568451,0.61885486,3435.4,3435.3,2.91095391]
[1762581568651,0.61885486,3435.4,3435.3,3.82605391]
[1762581568652,1.39230503,3435.4,3435.3,3.82605391]
[1762581568966,1.39230503,3435.4,3435.3,4.51910919]
[1762581569136,0.61885486,3435.4,3435.3,4.51910919]
[1762581569449,0.61885486,3435.4,3435.3,4.92461319]
[1762581569635,1.39274628,3435.4,3435.3,4.92461319]
[1762581570011,0.61885486,3435.4,3435.3,4.92461319]
[1762581571016,0.61885486,3435.4,3435.3,4.06790919]
[1762581571354,0.61885486,3435.4,3435.3,4.00869459]
[1762581572327,1.64915293,3435.4,3435.3,4.86539859]
[1762581572660,0.61885486,3435.4,3435.3,4.86539859]
[1762581573360,1.39404924,3435.4,3435.3,4.86539859]
[1762581574135,0.61885486,3435.4,3435.3,4.86539859]
[1762581576177,0.61885486,3435.4,3431.4,1.46119341]
[1762581576178,3.064,3435.1,3431.4,1.46119341]
[1762581576352,3.064,3435.1,3429.1,6.57552534]
[1762581576353,0.185,3431.9,3429.1,0.005]
[1762581576514,0.185,3431.9,3430.8,2.91477206]
[1762581576515,0.77469674,3430.9,3430.8,2.91477206]
[1762581576870,1.03029807,3431.9,3430.2,5.2571443]
[1762581577015,1.03182099,3432.1,3432.0,2.91375291]
[1762581577209,1.03182099,3432.1,3431.1,8.17158083]
[1762581577210,0.34294,3432.9,3431.1,5.2571443]
[1762581577417,0.34294,3432.9,3432.8,2.91307387]
[1762581577964,0.185,3434.2,3432.8,4.08216149]
[1762581578274,2.42813567,3435.0,3432.5,5.2571443]
[1762581578275,0.185,3434.6,3434.1,2.91197111]
[1762581578567,0.185,3434.6,3432.0,0.405504]
[1762581578568,0.61787361,3434.5,3432.0,0.405504]
[1762581578858,0.005,3432.9,3432.8,2.91307387]
[1762581579026,0.005,3432.9,3432.8,3.90120443]
[1762581581353,0.185,3433.7,3433.6,2.91239515]
[1762581581554,0.19,3433.9,3433.8,2.91222552]
[1762581582721,0.005,3433.9,3433.8,2.91222552]
[1762581583145,0.005,3433.9,3433.6,2.91239515]
[1762581583146,0.61696593,3434.8,3434.5,2.91163196]
[1762581583348,0.4804,3434.9,3434.5,2.91163196]
[1762581583777,0.005,3434.9,3434.8,2.91137766]
[1762581588748,0.005,3434.9,3434.8,3.05617766]
[1762581588988,1e-08,3434.9,3434.8,3.94410764]
[1762581591464,1e-08,3434.9,3434.8,2.99786818]
[1762581591669,0.18640001,3434.9,3434.8,2.99786818]
[1762581592782,1e-08,3434.9,3434.8,2.99786818]
[1762581593100,0.97420001,3434.9,3434.8,2.99786818]
[1762581593695,0.49880001,3434.9,3434.8,2.99786818]
[1762581593907,1e-08,3434.9,3434.8,2.99786818]
[1762581594090,1e-08,3434.9,3434.8,3.87996721]
[1762581594257,0.97420001,3434.9,3434.8,2.85306818]
[1762581594461,1.5940966,3434.9,3434.8,2.85306818]
[1762581595000,1.5940966,3434.9,3434.8,2.85406818]
[1762581595155,1.5960966,3434.9,3434.8,2.85406818]
[1762581596111,0.97620001,3434.9,3434.8,2.85406818]
[1762581596690,0.00200001,3434.9,3434.8,3.7217716]
[1762581597911,0.50080001,3434.9,3434.8,2.85406818]
[1762581598426,0.97620001,3434.9,3434.8,2.85406818]
[1762581599137,0.00200001,3434.9,3434.8,2.85406818]
[1762581600744,0.00200001,3434.9,3434.8,3.25957218]
[1762581601430,0.00200001,3434.9,3434.8,3.20126346]
[1762581601625,0.00200001,3434.9,3434.8,4.10368641]
[1762581603882,1e-08,3435.9,3435.8,2.91053029]
[1762581604240,1e-08,3435.9,3435.8,3.05533029]
[1762581607759,1e-08,3435.9,3435.8,3.31603429]
[1762581607957,1e-08,3435.9,3435.8,3.93870036]
[1762581609876,1.13980001,3435.9,3435.8,2.91053029]
[1762581612364,1e-08,3435.9,3435.8,2.91053029]
[1762581612901,1e-08,3435.9,3435.8,3.31603429]
[1762581613400,1e-08,3435.9,3435.8,3.31703429]
[1762581613558,0.00200001,3435.9,3435.8,3.31703429]
[1762581613753,0.00200001,3435.9,3435.8,3.93980036]
[1762581616704,0.47900001,3435.9,3435.8,3.31703429]
[1762581616999,0.67610001,3435.9,3435.8,3.31703429]
[1762581617694,0.67610001,3435.9,3435.8,3.46183429]
[1762581618804,0.67610001,3435.9,3433.5,2.91247997]
[1762581618805,0.456477,3435.5,3433.5,2.91247997]
[1762581619042,0.1971,3434.6,3434.5,2.91157191]
[1762581619496,1.1398,3434.6,3434.5,2.91157191]
[1762581627657,0.6741,3434.6,3434.5,2.91157191]
[1762581628475,1.1398,3434.6,3434.5,2.91157191]
[1762581630275,0.6105,3435.0,3434.9,2.9112929]
[1762581630822,1.0875,3435.0,3434.9,2.9112929]
[1762581631052,0.477,3435.0,3434.9,2.9112929]
[1762581632226,0.477,3435.0,3434.9,3.0560929]
[1762581632227,0.9427,3435.0,3434.9,3.0560929]
[1762581633871,0.477,3435.0,3434.9,3.0560929]
[1762581634506,0.477,3435.0,3434.9,3.0104452]
[1762581636095,0.1448,3435.5,3435.1,2.9111234]
[1762581636297,0.1448,3435.5,3435.4,2.91086918]
[1762581636465,0.6045,3435.5,3435.4,2.91086918]
[1762581636666,1.0874,3435.5,3435.4,2.91086918]
[1762581638000,0.9426,3435.5,3435.4,2.91086918]
[1762581640280,0.9426,3435.5,3434.3,2.9117593]
[1762581640603,0.4829,3434.6,3434.5,2.91263196]
[1762581641107,0.9426,3434.6,3434.5,2.91263196]
[1762581641292,0.1448,3434.5,3432.7,2.91309846]
[1762581641494,0.1456,3434.0,3433.9,2.91214071]
[1762581641914,1.0882,3434.0,3433.9,2.91214071]
[1762581644408,1.0882,3434.0,3433.9,2.87105778]
[1762581647101,0.6285,3434.0,3433.9,2.87105778]
[1762581647637,0.6226,3434.2,3434.1,2.91197111]